bitfinex/quotes_SOLUSD_20250306
["timestamp","ask_amount","ask_price","bid_price","bid_amount"]
[1741282348059,130.21339414,144.44,144.38,47.19026457]
[1741282348543,35.99921435,144.43,144.37,29.07551435]
[1741282348853,29.07551435,144.42,144.37,0.14216157]
[1741282349069,29.07551435,144.4,144.35,0.033]
[1741282349238,29.07551435,144.38,144.35,0.033]
[1741282349442,29.07551435,144.39,144.35,0.033]
[1741282350168,29.07551435,144.37,144.35,0.033]
[1741282350649,102.18134886,144.4,144.35,0.033]
[1741282350957,1.5317,144.4,144.37,29.21767592]
[1741282351178,6.2882,144.41,144.39,29.21767592]
[1741282351464,47.72516321,144.44,144.39,0.14216157]
[1741282351762,1.5817,144.45,144.4,0.14216157]
[1741282351967,6.6436,144.46,144.43,29.21767592]
[1741282352175,102.13420661,144.5,144.43,29.21767592]
[1741282352176,112.67901435,144.5,144.44,29.07551435]
[1741282352344,29.07551435,144.49,144.43,29.21767592]
[1741282352544,30.09864392,144.49,144.43,29.21767592]
[1741282352867,29.07551435,144.48,144.42,36.14177592]
[1741282353065,29.07551435,144.47,144.42,0.14216157]
[1741282353247,29.07551435,144.45,144.42,0.14216157]
[1741282353581,29.07551435,144.43,144.39,0.14216157]
[1741282354063,29.07551435,144.44,144.38,29.21767592]
[1741282354763,29.07551435,144.45,144.4,7.06716157]
[1741282355655,47.72516321,144.49,144.44,0.14216157]
[1741282355849,54.64606321,144.49,144.44,0.14216157]
[1741282356050,29.07551435,144.48,144.44,0.14216157]
[1741282356262,47.72516321,144.46,144.41,0.14216157]
[1741282356767,6.9228,144.45,144.41,0.14216157]
[1741282356955,35.99831435,144.45,144.4,0.14216157]
[1741282357339,82.0,144.48,144.43,0.14216157]
[1741282357544,29.07551435,144.48,144.43,312.14216157]
[1741282357766,6.921,144.49,144.43,341.21767592]
[1741282358065,6.921,144.49,144.43,312.14216157]
[1741282358066,29.07551435,144.48,144.43,312.14216157]
[1741282359652,30.67901435,144.5,144.45,0.14216157]
[1741282360150,1.6035,144.5,144.45,29.21767592]
[1741282360345,1.6035,144.5,144.46,29.21767592]
[1741282360546,1.6035,144.5,144.46,0.14216157]
[1741282360775,6.2444,144.51,144.48,0.14216157]
[1741282361163,35.99451435,144.53,144.48,0.14216157]
[1741282361371,131.30886321,144.55,144.49,29.07551435]
[1741282361561,83.5837,144.55,144.51,0.14216157]
[1741282361747,1.5837,144.55,144.51,29.21767592]
[1741282361950,0.9113446,144.57,144.54,0.14216157]
[1741282362583,6.9175,144.56,144.53,0.14216157]
[1741282362760,7.8285446,144.57,144.53,0.14216157]
[1741282362960,36.90405895,144.57,144.53,0.14216157]
[1741282363292,36.90405895,144.57,144.51,29.21767592]
[1741282363450,0.9113446,144.57,144.53,0.14216157]
[1741282363644,0.9113446,144.57,144.54,0.14216157]
[1741282364086,7.8283446,144.57,144.53,0.14216157]
[1741282364579,0.9113446,144.57,144.54,0.14216157]
[1741282364980,7.8283446,144.57,144.54,312.14216157]
[1741282366287,0.9113446,144.57,144.54,359.29356034]
[1741282366600,0.9113446,144.57,144.56,47.29356034]
[1741282366998,0.9113446,144.57,144.56,54.21106034]
[1741282367197,0.9113446,144.57,144.56,136.31106034]
[1741282367512,0.9113446,144.57,144.56,136.59538348]
[1741282367801,4.46e-05,144.57,144.56,293.04503234]
[1741282368509,4.46e-05,144.57,144.56,136.59538348]
[1741282368871,4.46e-05,144.57,144.56,155.24503234]
[1741282369072,4.46e-05,144.57,144.56,295.04503234]
[1741282369291,4.46e-05,144.57,144.56,157.24503234]
[1741282369598,6.9123,144.67,144.6,0.14216157]
[1741282369769,6.9123,144.67,144.63,0.14216157]
[1741282370576,13.443,144.68,144.64,47.29356034]
[1741282370778,13.443,144.68,144.64,0.14216157]
[1741282371805,13.443,144.68,144.64,47.29356034]
[1741282372001,6.5312,144.68,144.66,0.14216157]
[1741282372209,1.5366,144.69,144.66,0.14216157]
[1741282372414,8.448,144.69,144.66,0.14216157]
[1741282372909,8.448,144.69,144.64,47.29356034]
[1741282373289,56.62252834,144.69,144.64,0.14216157]
[1741282373508,47.15139877,144.68,144.64,0.14216157]
[1741282374179,47.15139877,144.68,144.63,82.1]
[1741282374384,129.15139877,144.68,144.63,0.14216157]
[1741282374915,82.0,144.68,144.64,0.14216157]
[1741282375108,82.0,144.68,144.66,0.14216157]
[1741282375298,1.5366,144.69,144.66,0.14216157]
[1741282375614,1.5366,144.69,144.63,47.15139877]
[1741282375615,55.59929877,144.69,144.63,47.15139877]
[1741282375820,27.09754886,144.69,144.65,0.14216157]
[1741282375991,8.4479,144.69,144.65,0.14216157]
[1741282376192,8.4479,144.69,144.65,47.29356034]
[1741282376724,8.4779,144.69,144.65,47.29356034]
[1741282377083,8.4779,144.69,144.65,0.14216157]
[1741282377284,47.15139877,144.68,144.62,47.15139877]
[1741282377595,0.03,144.69,144.67,47.29356034]
[1741282378116,0.03,144.69,144.68,47.15139877]
[1741282378312,0.03,144.69,144.67,359.29356034]
[1741282378814,0.03,144.69,144.68,47.29356034]
[1741282379190,0.03,144.69,144.68,54.20536034]
[1741282379593,0.03,144.69,144.68,47.29356034]
[1741282379999,0.03,144.69,144.68,0.14216157]
[1741282380322,0.0001,144.69,144.68,329.00108225]
[1741282380496,0.0001,144.69,144.68,281.84968348]
[1741282380696,0.0001,144.69,144.68,281.56536034]
[1741282381313,0.0001,144.69,144.68,274.65356034]
[1741282381825,0.0001,144.69,144.68,136.85356034]
[1741282382423,0.0001,144.69,144.68,7.46]
[1741282382625,0.0001,144.69,144.65,47.15139877]
[1741282382837,0.0001,144.69,144.64,129.25139877]
[1741282383143,47.15149877,144.69,144.63,54.61139877]
[1741282383439,6.9118,144.69,144.64,47.15139877]
[1741282383812,6.9118,144.69,144.65,0.14216157]
[1741282384018,6.9118,144.69,144.65,47.15139877]
[1741282384211,0.0001,144.69,144.66,47.15139877]
[1741282384414,6.9115,144.69,144.67,0.14216157]
[1741282384616,35.87981953,144.69,144.63,36.42831953]
[1741282384826,6.9115,144.69,144.65,28.96831953]
[1741282385027,6.9115,144.69,144.66,20.0]
[1741282385028,0.0001,144.69,144.66,20.0]
[1741282385209,0.0001,144.69,144.68,29.1104811]
[1741282385412,0.0001,144.69,144.68,0.14216157]
[1741282385617,0.0001,144.69,144.68,29.1104811]
[1741282385815,0.0001,144.69,144.68,0.14216157]
[1741282386015,0.0001,144.69,144.68,29.1104811]
[1741282387110,0.0001,144.69,144.68,0.14216157]
[1741282387424,0.0001,144.69,144.68,36.0222811]
[1741282388005,0.0001,144.69,144.68,29.1104811]
[1741282389028,0.0001,144.69,144.68,0.14216157]
[1741282389209,0.0001,144.69,144.68,36.0222811]
[1741282389528,0.0001,144.69,144.68,118.43960424]
[1741282390632,0.0001,144.69,144.68,430.43960424]
[1741282391011,0.0001,144.69,144.68,615.85757263]
[1741282391408,0.03,144.7,144.68,615.85757263]
[1741282391409,0.0001,144.7,144.69,19.07613357]
[1741282391720,0.0001,144.7,144.69,305.82341107]
[1741282391923,0.0001,144.7,144.69,304.37277263]
[1741282392128,0.03,144.72,144.71,38.79181043]
[1741282392316,0.0001,144.72,144.71,69.21069344]
[1741282392717,0.0001,144.72,144.71,67.76012996]
[1741282393306,0.0001,144.72,144.71,74.67042996]
[1741282393625,0.0001,144.72,144.71,49.1104811]
[1741282393930,0.0001,144.72,144.7,89.56]
[1741282394109,0.0001,144.72,144.7,7.46]
[1741282394544,0.0001,144.72,144.71,29.1104811]
[1741282394836,0.0001,144.72,144.68,29.00131953]
[1741282395020,0.0001,144.72,144.68,0.033]
[1741282395225,100.64964886,144.71,144.68,0.033]
[1741282395422,28.96831953,144.69,144.68,0.033]
[1741282395636,29.9914491,144.69,144.68,0.033]
[1741282396138,82.0,144.71,144.68,0.033]
[1741282396341,0.0001,144.72,144.68,0.033]
[1741282396542,0.0001,144.72,144.69,28.96831953]
[1741282396837,0.0001,144.72,144.71,29.1104811]
[1741282397336,0.0001,144.72,144.71,36.0207811]
[1741282397845,0.0001,144.72,144.71,348.0207811]
[1741282398844,0.0001,144.72,144.71,36.0207811]
[1741282399217,0.0001,144.72,144.71,36.30510424]
[1741282399412,0.0001,144.72,144.71,118.40510424]
[1741282400027,0.0001,144.72,144.71,118.1207811]
[1741282400750,0.0001,144.72,144.71,118.40510424]
[1741282400950,0.0001,144.72,144.71,118.1207811]
[1741282401151,0.0001,144.72,144.71,118.40510424]
[1741282401952,0.0001,144.72,144.71,430.40510424]
[1741282403552,0.0001,144.72,144.71,430.1207811]
[1741282403728,0.0001,144.72,144.71,401.15246157]
[1741282403924,0.0001,144.72,144.71,423.2104811]
[1741282404129,0.0001,144.72,144.69,89.0111]
[1741282404330,0.0001,144.72,144.71,28.96831953]
[1741282404530,0.0001,144.72,144.71,29.1104811]
[1741282404730,0.0001,144.72,144.71,0.14216157]
[1741282404944,0.0001,144.72,144.69,82.1]
[1741282405151,0.0001,144.72,144.7,0.14216157]
[1741282405351,0.0001,144.72,144.68,0.033]
[1741282405534,28.96831953,144.69,144.68,0.033]
[1741282406132,29.9914491,144.69,144.64,0.14216157]
[1741282406356,28.96831953,144.68,144.62,28.96831953]
[1741282406551,28.96831953,144.68,144.62,35.88291953]
[1741282406948,29.9914491,144.69,144.63,28.96831953]
[1741282407153,29.9914491,144.69,144.63,340.96831953]
[1741282407355,28.96831953,144.68,144.63,312.0]
[1741282407534,35.87981953,144.69,144.64,0.14216157]
[1741282407938,28.96831953,144.67,144.57,246.66]
[1741282408145,28.96831953,144.65,144.59,28.96831953]
[1741282408338,28.96831953,144.65,144.6,0.14216157]
[1741282409034,136.53076839,144.66,144.61,0.14216157]
[1741282409235,136.53076839,144.66,144.6,28.96831953]
[1741282409761,136.53076839,144.66,144.61,0.14216157]
[1741282410362,82.0,144.66,144.61,29.1104811]
[1741282410947,117.88121953,144.66,144.61,312.14216157]
[1741282411473,82.0,144.66,144.63,0.14216157]
[1741282411680,82.0,144.7,144.66,0.14216157]
[1741282411977,6.9108,144.7,144.66,29.1104811]
[1741282412180,7.6453,144.71,144.66,29.1104811]
[1741282412385,7.6453,144.71,144.68,0.14216157]
[1741282412597,7.6453,144.71,144.7,0.14216157]
[1741282412891,0.0001,144.72,144.71,0.14216157]
[1741282413092,0.0001,144.72,144.71,29.1104811]
[1741282413254,0.0001,144.72,144.7,0.14216157]
[1741282413454,0.0001,144.72,144.7,29.1104811]
[1741282413711,0.0001,144.72,144.71,29.1104811]
[1741282414456,0.0001,144.72,144.71,341.1104811]
[1741282414770,0.0001,144.72,144.71,312.14216157]
[1741282415692,0.0001,144.72,144.71,0.14216157]
[1741282416396,0.0001,144.72,144.7,82.1]
[1741282416763,28.96841953,144.72,144.67,0.14216157]
[1741282417270,0.0001,144.72,144.67,28.96831953]
[1741282417476,6.9099,144.72,144.67,28.96831953]
[1741282417799,49.21346839,144.71,144.65,82.1]
[1741282417998,30.56381953,144.71,144.66,0.14216157]
[1741282418207,30.56381953,144.71,144.65,28.96831953]
[1741282418371,30.56381953,144.71,144.63,28.96831953]
[1741282418372,28.96831953,144.69,144.63,28.96831953]
[1741282418710,28.96831953,144.66,144.6,111.06831953]
[1741282418905,28.96831953,144.65,144.59,118.52831953]
[1741282419199,28.96831953,144.66,144.6,29.1104811]
[1741282419377,28.96831953,144.66,144.59,36.42831953]
[1741282419378,100.64964886,144.65,144.59,36.42831953]
[1741282419578,28.96831953,144.63,144.57,111.06831953]
[1741282419807,28.96831953,144.6,144.54,28.96831953]
[1741282420008,28.96831953,144.6,144.53,82.133]
[1741282420311,28.96831953,144.6,144.53,0.033]
[1741282420312,28.96831953,144.57,144.53,0.033]
[1741282420913,28.96831953,144.56,144.53,0.033]
[1741282421415,28.96831953,144.54,144.53,0.033]
[1741282421713,54.53646839,144.54,144.53,0.033]
[1741282422576,25.56814886,144.54,144.53,0.033]
[1741282422800,65.83715447,144.54,144.53,0.033]
[1741282423003,65.83715447,144.54,144.48,312.0]
[1741282423004,18.64964886,144.53,144.48,312.0]
[1741282423310,47.18750561,144.5,144.46,0.033]
[1741282423975,65.83715447,144.51,144.46,0.17516157]
[1741282424171,47.18750561,144.52,144.46,47.36266718]
[1741282424407,47.18750561,144.51,144.46,47.22050561]
[1741282424909,47.18750561,144.52,144.48,0.14216157]
[1741282425144,129.18750561,144.53,144.48,0.14216157]
[1741282425438,47.18750561,144.52,144.46,47.36266718]
[1741282425734,47.18750561,144.51,144.46,47.36266718]
[1741282426235,47.18750561,144.52,144.46,359.36266718]
[1741282426444,47.18750561,144.51,144.46,312.17516157]
[1741282426737,47.18750561,144.47,144.46,0.033]
[1741282427035,148.86028404,144.47,144.39,47.22050561]
[1741282427241,47.18750561,144.45,144.39,47.22050561]
[1741282427420,47.18750561,144.45,144.4,0.14216157]
[1741282427741,47.18750561,144.45,144.39,47.22050561]
[1741282427911,47.18750561,144.45,144.4,47.18750561]
[1741282428337,47.18750561,144.45,144.41,0.14216157]
[1741282428538,82.0,144.47,144.41,47.18750561]
[1741282428718,129.18750561,144.47,144.42,0.14216157]
[1741282429222,47.18750561,144.46,144.42,0.14216157]
[1741282429416,47.18750561,144.46,144.41,0.14216157]
[1741282429632,129.18750561,144.47,144.41,359.32966718]
[1741282429946,82.0,144.47,144.44,0.14216157]
[1741282430635,47.18750561,144.48,144.42,47.32966718]
[1741282430819,47.18750561,144.48,144.43,47.18750561]
[1741282431449,48.21063518,144.49,144.43,47.18750561]
[1741282431738,48.21063518,144.49,144.43,54.11100561]
[1741282432142,47.18750561,144.48,144.43,54.11100561]
[1741282432324,47.18750561,144.46,144.41,0.14216157]
[1741282432526,47.18750561,144.45,144.39,129.32050561]
[1741282432723,47.18750561,144.45,144.4,0.14216157]
[1741282433642,82.0,144.46,144.41,47.18750561]
[1741282433838,82.0,144.46,144.43,0.14216157]
[1741282434228,82.0,144.46,144.43,312.14216157]
[1741282435144,47.18750561,144.48,144.43,312.14216157]
[1741282435323,130.21063518,144.49,144.45,0.14216157]
[1741282435645,47.18750561,144.48,144.44,0.14216157]
[1741282435947,137.13153518,144.49,144.44,0.14216157]
[1741282436259,136.10840561,144.49,144.44,0.14216157]
[1741282436422,136.10840561,144.49,144.44,47.32966718]
[1741282436423,82.0,144.49,144.44,47.32966718]
[1741282436615,82.0,144.49,144.45,47.18750561]
[1741282436815,82.0,144.49,144.44,47.32966718]
[1741282437325,82.0,144.49,144.44,54.25256718]
[1741282437520,62.23730561,144.5,144.44,54.25256718]
[1741282438746,47.18750561,144.49,144.44,0.14216157]
[1741282439034,62.23730561,144.5,144.45,0.14216157]
[1741282439442,8.1294,144.5,144.45,47.32966718]
[1741282439617,8.1294,144.5,144.46,47.18750561]
[1741282440027,62.23730561,144.5,144.46,0.14216157]
[1741282440941,47.18750561,144.49,144.46,0.14216157]
[1741282441149,15.0498,144.5,144.44,0.14216157]
[1741282441150,47.18750561,144.48,144.44,0.14216157]
[1741282441345,47.18750561,144.48,144.39,82.133]
[1741282441346,47.18750561,144.47,144.39,82.133]
[1741282441657,129.18750561,144.47,144.41,47.18750561]
[1741282442031,47.18750561,144.46,144.41,0.14216157]
[1741282442658,82.0,144.47,144.41,29.20418984]
[1741282442949,111.06202827,144.47,144.41,29.20418984]
[1741282443155,117.98402827,144.47,144.41,36.12858984]
[1741282443457,117.98402827,144.47,144.41,29.20418984]
[1741282443771,29.06202827,144.46,144.41,7.06686157]
[1741282443958,29.06202827,144.46,144.41,0.14216157]
[1741282444155,29.06202827,144.44,144.4,312.0]
[1741282444457,82.0,144.46,144.43,0.14216157]
[1741282444629,117.98352827,144.48,144.43,0.14216157]
[1741282444831,29.06202827,144.47,144.41,29.20418984]
[1741282445052,6.9223,144.46,144.41,29.20418984]
[1741282445366,29.06202827,144.45,144.41,0.14216157]
[1741282445741,29.06202827,144.44,144.41,0.033]
[1741282445945,29.06202827,144.42,144.41,0.033]
[1741282446160,47.99600027,144.42,144.41,0.033]
[1741282446654,57.09202984,144.42,144.41,0.033]
[1741282446830,57.09202984,144.42,144.39,0.033]
[1741282447027,29.06202827,144.4,144.39,0.033]
[1741282447252,37.01035784,144.4,144.39,0.033]
[1741282447833,18.79181043,144.39,144.38,0.033]
[1741282448032,47.8538387,144.39,144.38,0.033]
[1741282448258,47.8538387,144.39,144.35,0.033]
[1741282448539,29.06202827,144.36,144.35,0.033]
[1741282448747,30.08515784,144.36,144.35,0.033]
[1741282449134,6.9276,144.35,144.29,0.033]
[1741282449339,29.06202827,144.3,144.29,0.033]
[1741282450063,1.02312957,144.32,144.29,0.033]
[1741282450064,29.06202827,144.31,144.29,0.033]
[1741282450369,1.02312957,144.32,144.29,0.033]
[1741282450570,29.06202827,144.3,144.29,0.033]
[1741282450770,30.08515784,144.3,144.29,0.033]
[1741282450948,29.06202827,144.3,144.29,0.033]
[1741282452140,29.06202827,144.31,144.29,0.033]
[1741282452340,1.6129,144.33,144.29,0.17516157]
[1741282452568,1.6129,144.33,144.29,29.23718984]
[1741282452752,6.5348,144.34,144.32,0.14216157]
[1741282452948,82.0,144.36,144.32,0.14216157]
[1741282453179,8.1498,144.38,144.33,29.06202827]
[1741282453465,112.08515784,144.4,144.35,0.14216157]
[1741282454049,29.06202827,144.39,144.34,0.14216157]
[1741282454250,29.06202827,144.41,144.36,0.14216157]
[1741282455348,118.09315784,144.42,144.38,0.14216157]
[1741282456040,29.06202827,144.41,144.38,0.14216157]
[1741282456242,82.0,144.42,144.38,29.20418984]
[1741282457356,82.0,144.42,144.4,0.14216157]
[1741282457552,35.38092827,144.46,144.4,29.20418984]
[1741282458170,29.06202827,144.42,144.36,36.02202827]
[1741282458375,83.02312957,144.45,144.39,29.06202827]
[1741282458376,82.0,144.45,144.39,29.06202827]
[1741282458579,111.06202827,144.45,144.4,0.14216157]
[1741282458865,29.06202827,144.44,144.39,0.14216157]
[1741282459239,35.98572827,144.44,144.39,0.14216157]
[1741282459441,29.06202827,144.42,144.38,0.14216157]
[1741282459843,29.06202827,144.42,144.37,0.14216157]
[1741282460044,29.06202827,144.4,144.37,0.14216157]
[1741282460277,29.06202827,144.39,144.36,0.033]
[1741282460472,29.06202827,144.37,144.36,0.033]
[1741282460969,54.53960027,144.37,144.36,0.033]
[1741282461266,136.53960027,144.37,144.36,0.033]
[1741282461466,8.5436,144.31,144.26,0.033]
[1741282461767,8.5436,144.31,144.2,0.033]
[1741282461768,18.933972,144.26,144.2,0.033]
[1741282461948,29.06202827,144.21,144.2,0.033]
[1741282463679,35.99632827,144.21,144.2,0.033]
[1741282464782,54.34764965,144.21,144.2,0.033]
[1741282466482,120.6949713,144.21,144.18,0.033]
[1741282466772,47.41334965,144.19,144.18,0.033]
[1741282467165,7.95742957,144.21,144.18,0.033]
[1741282467360,47.41334965,144.19,144.18,0.033]
[1741282467567,7.95742957,144.21,144.13,47.55551122]
[1741282467758,47.41334965,144.19,144.13,47.55551122]
[1741282468359,47.41334965,144.19,144.14,0.14216157]
[1741282468659,47.41334965,144.18,144.14,0.14216157]
[1741282468856,47.41334965,144.19,144.13,47.55551122]
[1741282469067,47.41334965,144.22,144.17,0.14216157]
[1741282469269,47.41334965,144.21,144.15,47.41334965]
[1741282469462,47.41334965,144.21,144.18,0.14216157]
[1741282469882,47.41334965,144.22,144.18,0.14216157]
[1741282470092,47.41334965,144.22,144.16,47.55551122]
[1741282470785,47.41334965,144.22,144.19,0.033]
[1741282470979,47.41334965,144.2,144.19,0.033]
[1741282471483,54.34814965,144.2,144.19,0.033]
[1741282471685,47.41334965,144.2,144.19,0.033]
[1741282471888,82.0,144.23,144.19,0.033]
[1741282472062,129.41334965,144.23,144.19,0.033]
[1741282472592,47.41334965,144.24,144.19,0.033]
[1741282472789,47.41334965,144.26,144.21,0.14216157]
[1741282473094,47.41334965,144.28,144.22,47.55551122]
[1741282473497,47.41334965,144.27,144.22,0.14216157]
[1741282474178,6.9306,144.29,144.22,47.55551122]
[1741282474359,82.0,144.33,144.27,0.14216157]
[1741282474564,47.41334965,144.35,144.29,47.55551122]
[1741282475065,1.02312957,144.34,144.25,0.14216157]
[1741282475682,47.41334965,144.3,144.25,0.14216157]
[1741282475870,47.41334965,144.29,144.25,0.14216157]
[1741282476066,47.41334965,144.28,144.24,82.1]
[1741282476279,47.41334965,144.3,144.25,0.14216157]
[1741282476494,47.41334965,144.31,144.27,0.14216157]
[1741282476697,47.41334965,144.32,144.27,0.14216157]
[1741282476867,47.41334965,144.33,144.27,47.55551122]
[1741282477063,47.41334965,144.34,144.29,0.14216157]
[1741282477266,19.25027634,144.35,144.32,0.14216157]
[1741282477702,47.41334965,144.37,144.32,0.14216157]
[1741282478400,47.41334965,144.35,144.3,0.14216157]
[1741282479168,47.41334965,144.34,144.3,0.14216157]
[1741282479371,47.41334965,144.35,144.3,0.14216157]
[1741282479766,47.41334965,144.37,144.32,0.14216157]
[1741282480078,47.41334965,144.37,144.32,312.14216157]
[1741282480282,47.41334965,144.36,144.32,312.14216157]
[1741282480794,47.41334965,144.34,144.32,312.14216157]
[1741282481488,47.41334965,144.37,144.32,312.14216157]
[1741282482085,47.41334965,144.36,144.32,312.14216157]
[1741282482781,54.34064965,144.36,144.32,312.14216157]
[1741282482983,47.41334965,144.33,144.29,82.1]
[1741282483179,47.41334965,144.32,144.28,82.1]
[1741282483499,47.41334965,144.32,144.29,0.14216157]
[1741282483992,47.41334965,144.31,144.27,7.46]
[1741282484301,47.41334965,144.29,144.25,82.1]
[1741282484601,47.41334965,144.29,144.26,0.14216157]
[1741282484799,47.41334965,144.28,144.22,136.44704965]
[1741282484970,47.41334965,144.25,144.22,7.46]
[1741282485185,47.41334965,144.24,144.22,7.46]
[1741282485816,47.41334965,144.24,144.23,20.0]
[1741282486323,47.41334965,144.24,144.23,20.14216157]
[1741282486501,29.15302258,144.24,144.23,20.14216157]
[1741282486821,29.15302258,144.25,144.24,0.14216157]
[1741282487616,82.0,144.28,144.22,29.15302258]
[1741282487820,7.46,144.31,144.23,29.29518415]
[1741282487821,29.15302258,144.29,144.23,29.29518415]
[1741282488327,29.15302258,144.28,144.23,0.14216157]
[1741282488850,29.15302258,144.28,144.25,0.14216157]
[1741282489041,111.15302258,144.31,144.25,0.14216157]
[1741282489210,29.15302258,144.31,144.25,29.29518415]
[1741282489607,29.15302258,144.29,144.25,0.14216157]
[1741282490343,29.15302258,144.3,144.25,0.14216157]
[1741282490716,29.15302258,144.3,144.26,312.0]
[1741282491424,29.15302258,144.3,144.26,318.9318]
[1741282492415,29.15302258,144.3,144.26,312.0]
[1741282492815,29.15302258,144.29,144.26,312.0]
[1741282493023,29.15302258,144.3,144.25,0.14216157]
[1741282493226,29.15302258,144.3,144.26,6.9318]
[1741282493823,13.59,144.32,144.26,6.9318]
[1741282493824,35.81382258,144.32,144.27,0.14216157]
[1741282494033,29.15302258,144.32,144.27,0.14216157]
[1741282495128,111.15302258,144.33,144.27,0.14216157]
[1741282495530,111.15302258,144.33,144.28,6.9309]
[1741282495842,29.15302258,144.32,144.28,6.9309]
[1741282496012,29.15302258,144.3,144.28,312.0]
[1741282496643,29.18302258,144.3,144.28,312.0]
[1741282496938,29.18302258,144.3,144.27,0.14216157]
[1741282497244,0.03,144.3,144.25,29.29518415]
[1741282497442,0.03,144.3,144.29,49.29518415]
[1741282497612,0.03,144.3,144.29,56.75518415]
[1741282498614,29.15302258,144.38,144.3,19.07613357]
[1741282498936,29.15302258,144.38,144.32,0.14216157]
[1741282499142,29.15302258,144.37,144.32,0.14216157]
[1741282499359,117.58082258,144.39,144.34,0.14216157]
[1741282499643,29.15302258,144.39,144.34,0.14216157]
[1741282499812,29.15302258,144.38,144.34,312.14216157]
[1741282500009,29.15302258,144.36,144.34,312.14216157]
[1741282500231,29.15302258,144.36,144.3,111.25302258]
[1741282500232,29.15302258,144.35,144.29,14.3903]
[1741282500440,29.15302258,144.34,144.29,14.3903]
[1741282500654,29.15302258,144.34,144.3,0.14216157]
[1741282500848,111.15302258,144.36,144.3,29.29518415]
[1741282501167,29.15302258,144.38,144.33,0.14216157]
[1741282501361,29.15302258,144.35,144.33,0.14216157]
[1741282501666,29.15302258,144.34,144.31,0.14216157]
[1741282501836,29.15302258,144.35,144.31,0.14216157]
[1741282502446,29.15302258,144.36,144.31,0.14216157]
[1741282502963,82.0,144.38,144.33,0.14216157]
[1741282503142,29.15302258,144.37,144.33,394.24216157]
[1741282503764,29.15302258,144.39,144.33,430.32348415]
[1741282503935,0.03,144.4,144.35,29.29518415]
[1741282504343,36.10832258,144.4,144.35,0.14216157]
[1741282504552,29.15302258,144.39,144.34,0.14216157]
[1741282504760,29.18302258,144.4,144.34,29.29518415]
[1741282505647,29.18302258,144.4,144.36,0.14216157]
[1741282505967,0.03,144.4,144.36,0.14216157]
[1741282506137,29.15302258,144.38,144.36,0.14216157]
[1741282506459,0.03,144.4,144.36,0.14216157]
[1741282506667,6.9552,144.4,144.36,0.14216157]
[1741282506848,29.15302258,144.37,144.3,89.56]
[1741282507159,29.15302258,144.34,144.31,0.14216157]
[1741282507367,29.15302258,144.36,144.31,0.14216157]
[1741282507547,82.0,144.38,144.31,0.14216157]
[1741282507757,29.15302258,144.35,144.31,7.07156157]
[1741282507974,29.15302258,144.35,144.3,394.1]
[1741282508275,29.15302258,144.31,144.28,82.1]
[1741282508481,29.15302258,144.3,144.26,82.1]
[1741282508776,29.15302258,144.3,144.25,14.3923]
[1741282509071,29.15302258,144.3,144.26,0.14216157]
[1741282509446,29.15302258,144.32,144.28,0.14216157]
[1741282509648,88.0708,144.34,144.3,0.033]
[1741282509649,29.15302258,144.33,144.3,0.033]
[1741282509849,29.15302258,144.32,144.3,0.033]
[1741282510039,18.64964886,144.3,144.23,82.1]
[1741282510246,29.15302258,144.24,144.2,82.1]
[1741282510541,29.15302258,144.21,144.19,0.033]
[1741282510746,6.2987,144.25,144.19,0.033]
[1741282510747,29.15302258,144.2,144.19,0.033]
[1741282511669,36.08782258,144.2,144.19,0.033]
[1741282512569,58.30604516,144.2,144.19,0.033]
[1741282512942,77.24001716,144.2,144.19,0.033]
[1741282513138,29.15302258,144.2,144.19,0.033]
[1741282513346,29.15302258,144.22,144.19,0.033]
[1741282513564,101.67277843,144.24,144.19,0.033]
[1741282513565,29.15302258,144.21,144.19,0.033]
[1741282514844,29.15302258,144.22,144.19,0.033]
[1741282515851,83.02312957,144.24,144.19,0.033]
[1741282516059,83.02312957,144.24,144.19,0.17516157]
[1741282516060,29.15302258,144.24,144.19,0.17516157]
[1741282516391,29.15302258,144.24,144.2,0.14216157]
[1741282517272,29.15302258,144.24,144.19,0.033]
[1741282517273,29.15302258,144.24,144.19,0.17516157]
[1741282517690,29.15302258,144.22,144.19,0.17516157]
[1741282517991,29.15302258,144.2,144.19,0.033]
[1741282518486,82.0,144.22,144.19,0.033]
[1741282518487,29.15302258,144.21,144.19,0.033]
[1741282518956,29.15302258,144.21,144.19,312.033]
[1741282519589,29.15302258,144.21,144.19,0.033]